[Event "Baku Open 2024"]
[Site "Baku"]
[Date "2024.07.02"]
[Round "4.34"]
[White "Javadov, Habil"]
[Black "Mammadova, Gulnar"]
[Result "1/2-1/2"]
[ECO "D02"]
[WhiteElo "2195"]
[BlackElo "2348"]
[Annotator "TA"]
[PlyCount "45"]
[EventDate "2024.06.29"]
[EventType "swiss"]
[EventCountry "AZE"]
[SourceTitle "playchess.com"]
[Source "ChessBase"]
[SourceQuality "1"]
[TimeControl "5400+30"]

{[%evp 15,45,-8,-6,-12,-12,-20,0,2,0,0,13,12,12,7,14,12,48,-10,-14,-15,1,-10,-4,-1,-3,-12,-5,-7,0,0,0,-10]} 1. d4 {[%emt 0:00:07]} Nf6 {[%emt 0:00:06]} 2. Nf3 {[%emt 0:00:07]} d5 {[%emt 0:00:12]} 3. Bf4 {[%emt 0:00:04]} e6 {[%emt 0:00:23]} 4. e3 {[%emt 0:00:05]} c5 {[%emt 0:00:14]} 5. c3 {[%emt 0:00:06]} Bd6 {[%emt 0:00:18]} 6. Bg3 {[%emt 0:00:07]} O-O {[%emt 0:00:37]} 7. Nbd2 {[%emt 0:00:08]} Qc7 {[%emt 0:00:56]} 8. Bd3 {[%emt 0:01:54]} Nbd7 {[%emt 0:02:39]} 9. O-O {[%emt 0:01:37]} Bxg3 {[%emt 0:00:46]} 10. hxg3 {[%emt 0:00:06]} e5 {[%emt 0:00:16]} 11. e4 {[%emt 0:10:05]} cxd4 {[%emt 0:11:00]} 12. cxd4 {[%emt 0:02:45]} exd4 {[%emt 0:12:39]} 13. Rc1 {[%emt 0:05:42]} Qd6 {[%emt 0:02:20]} 14. Re1 {[%emt 0:01:43] [#] Hoping for e5.} dxe4 {[%emt 0:03:30]} 15. Nxe4 {[%emt 0:02:17]} Qb6 {[%emt 0:01:38]} (15... Nxe4 {simplifies} 16. Rxe4 Nf6 17. Rxd4 Qe7) 16. Qb3 {[%emt 0:03:42]} ({Better is} 16. Neg5 $14 h6 17. Nxf7 Rxf7 18. Bc4) 16... Nxe4 {[%emt 0:05:14] The position is equal.} (16... Qxb3 {simplifies} 17. axb3 Rd8 18. Bc4 Nb6) 17. Bxe4 {[%emt 0:01:37]} Nc5 {[%emt 0:05:40]} (17... Qxb3 {simplifies} 18. axb3 Nf6 19. Nxd4 Rd8) 18. Bxh7+ {[%emt 0:02:02]} Kxh7 {[%emt 0:03:46]} 19. Qc2+ {[%emt 0:00:07]} d3 {[%emt 0:00:43]} 20. Qxc5 {[%emt 0:00:07]} Qxc5 {[%emt 0:06:23]} 21. Rxc5 {[%emt 0:02:54]} b6 {[%emt 0:01:28]} 22. Rc7 {[%emt 0:04:47]} Kg8 {[%emt 0:03:39]} 23. Ree7 {[%emt 0:03:35] An uneventful encounter.   Weighted Error Value: White=0.11 (very precise) /Black=0.07 (flawless) .  Mistake:       	White=1     	---        Inaccurate:     	---       	Black=1      OK:         	White=6     	Black=5} 1/2-1/2

[Event "Baku Open 2024"]
[Site "Baku"]
[Date "2024.07.02"]
[Round "4.35"]
[White "Md Imran"]
[Black "Aarav Sinha"]
[Result "1-0"]
[ECO "E04"]
[WhiteElo "2180"]
[BlackElo "2300"]
[Annotator "TA"]
[PlyCount "45"]
[EventDate "2024.06.29"]
[EventType "swiss"]
[EventCountry "AZE"]
[SourceTitle "playchess.com"]
[Source "ChessBase"]
[SourceQuality "1"]
[TimeControl "5400+30"]

{[%evp 12,45,11,0,0,0,0,0,0,0,0,0,0,-14,17,-6,0,-4,201,226,289,231,474,484,1439,1414,1378,1193,29992,29993,29995,5833,3061,3043,3050,2975]} 1. d4 {[%emt 0:00:08]} Nf6 {[%emt 0:01:11]} 2. c4 {[%emt 0:00:06]} e6 {[%emt 0:00:10]} 3. g3 {[%emt 0:01:01]} d5 {[%emt 0:00:49]} 4. Bg2 {[%emt 0:00:20]} Bb4+ {[%emt 0:00:53]} 5. Nd2 {[%emt 0:00:28]} O-O {[%emt 0:00:07]} 6. Ngf3 {[%emt 0:00:03]} dxc4 {[%emt 0:00:55]} 7. Qc2 {[%emt 0:00:13]} a5 {[%emt 0:00:06]} 8. a3 {[%emt 0:00:05]} Bxd2+ {[%emt 0:01:56]} 9. Bxd2 {[%emt 0:00:02]} b5 {[%emt 0:00:10] The position is equal.} 10. a4 {[%emt 0:00:01]} c6 {[%emt 0:03:18]} 11. h4 {[%emt 0:00:08]} Bb7 {[%emt 0:06:34]} 12. h5 {[%emt 0:00:14]} h6 {[%emt 0:09:43] [#]} 13. g4 $1 {[%emt 0:00:44]} Nxg4 {[%emt 0:07:40]} 14. Rg1 {[%emt 0:00:11] Strongly threatening Bh3.} Nf6 $2 {[%emt 0:08:19] [#] Black cannot hold the game after this.} (14... Kh8 $11) 15. Ne5 $1 $18 {[%emt 0:00:30][%cal Od2h6] And now Bxh6! would win.} Kh8 {[%emt 0:09:14][%cal Bg8h8,Bh8h7,Bh7g7,Bg7f6,Bf6e7][%mdl 32]} 16. axb5 {[%emt 0:01:52]} Qc8 $2 {[%emt 0:12:39]} (16... Qb6 17. Qc1 (17. Nxc4 Qxb5 18. Qc1 Rd8 $16) 17... Kh7 (17... Qxb5 $2 18. Bxh6 $18) (17... cxb5 $2 18. Bxb7 $18) 18. Bf3 $18 (18. Nxc4 Qxb5 19. Bf3 Nbd7 $16) (18. Qxc4 Ra7 $18)) (16... Qxd4 {might work better.} 17. bxc6 (17. Qxc4 $2 Qxe5 18. Qd3 Rc8 $19) (17. Nxc6 Qc5 $11) 17... Qxe5 18. cxb7 Ra6) 17. Qxc4 {[%emt 0:05:37]} (17. Nxc4 cxb5 (17... Nxh5 $2 18. Nd6 $18) 18. Bxb7 Qxb7 $11 (18... Qxc4 $2 19. Qxc4 bxc4 20. Bxa8 $18)) 17... Nd5 {[%emt 0:01:07] [#]} (17... Qc7 $142 18. bxc6 (18. Nxc6 Qh2 $16) 18... Nxc6 19. Bxc6 (19. Nxc6 Rac8 $18) 19... Qe7) 18. Bxh6 $1 {[%emt 0:02:09][%mdl 512] White wants to mate with Bxd5.} cxb5 {[%emt 0:10:43] [#]} 19. Bxg7+ $1 {[%emt 0:02:14][%mdl 512] A strong pair of Bishops.} Kh7 {[%emt 0:00:05]} (19... Kxg7 20. Bxd5+) 20. Qd3+ {[%emt 0:00:46]} Kxg7 {[%emt 0:00:16]} 21. Bxd5+ {[%emt 0:00:06]} (21. Qg3+ $142 Kf6 22. Qh4+ Kg7 23. Qg5+ (23. Bxd5+ Kh7 24. Qf6 Rg8 25. Qxf7+ Kh8 26. Rxg8+ Qxg8 27. Ng6+ Qxg6 28. hxg6 exd5 29. Qh7#) 23... Kh7 24. Be4+ f5 25. Qg7#) 21... Kf6 {[%emt 0:00:09]} 22. Qf3+ {[%emt 0:00:04]} Ke7 {[%emt 0:00:06]} 23. Bxb7 {[%emt 0:00:03] Weighted Error Value: White=0.10 (very precise) /Black=0.78.  Loses game:     	---       	Black=1      Mistake:       	---       	Black=2      OK:         	White=5     	Black=6      Best:        	---       	Black=1      Strong:       	White=1     	---        Brilliant:      	White=1     	---} 1-0

[Event "Baku Open 2024"]
[Site "Baku"]
[Date "2024.07.02"]
[Round "4.36"]
[White "Rustamov, Rustam"]
[Black "Prokhorov, Aleksey"]
[Result "1-0"]
[ECO "B90"]
[WhiteElo "2285"]
[BlackElo "2161"]
[Annotator "NA RC"]
[PlyCount "133"]
[EventDate "2024.06.29"]
[EventType "swiss"]
[EventCountry "AZE"]
[SourceTitle "playchess.com"]
[Source "ChessBase"]
[SourceQuality "1"]
[TimeControl "5400+30"]

1. e4 {[%emt 0:00:06]} c5 {[%emt 0:00:40]} 2. Nf3 {[%emt 0:00:15]} d6 {[%emt 0:00:32]} 3. d4 {[%emt 0:02:49]} cxd4 {[%emt 0:00:54]} 4. Nxd4 {[%emt 0:00:03]} Nf6 {[%emt 0:00:37]} 5. Nc3 {[%emt 0:00:32]} a6 {[%emt 0:00:25]} 6. h3 {[%emt 0:00:11]} e5 {[%emt 0:00:54]} 7. Nde2 {[%emt 0:00:48]} h5 {[%emt 0:00:32]} 8. Bg5 {[%emt 0:04:31]} Be6 {[%emt 0:05:03]} 9. f4 {[%emt 0:08:56]} Nbd7 {[%emt 0:03:04]} 10. f5 {[%emt 0:14:56]} Bc4 {[%emt 0:00:19]} 11. Ng3 {[%emt 0:02:19]} Rc8 {[%emt 0:09:42]} 12. Bxc4 {[%emt 0:06:00]} Rxc4 {[%emt 0:01:25]} 13. Qe2 {[%emt 0:01:19]} Rd4 {[%emt 0:15:02]} 14. O-O {[%emt 0:10:38]} Be7 {[%emt 0:10:27]} 15. Be3 {[%emt 0:07:16]} h4 {[%emt 0:11:11]} 16. Nh1 {[%emt 0:02:36]} Rb4 {[%emt 0:00:04]} 17. Nf2 {[%emt 0:00:40]} Nh5 {[%emt 0:01:47]} 18. Rfd1 {[%emt 0:02:12]} Ng3 {[%emt 0:00:55]} 19. Qd3 {[%emt 0:03:21]} Rxb2 {[%emt 0:06:29]} 20. Nd5 {[%emt 0:01:39]} Nf6 {[%emt 0:04:26]} 21. Nxf6+ {[%emt 0:02:26]} Bxf6 {[%emt 0:00:26]} 22. Qa3 {[%emt 0:07:15]} Rxc2 {[%emt 0:03:02]} 23. Rxd6 {[%emt 0:01:32]} Qc8 {[%emt 0:00:14]} 24. Ng4 {[%emt 0:14:34]} Nxe4 {[%emt 0:08:43]} 25. Qa4+ {[%emt 0:00:47]} Rc6 {[%emt 0:00:06]} 26. Rd3 {[%emt 0:00:53]} Ng3 {[%emt 0:01:46]} 27. Nxf6+ {[%emt 0:01:34]} gxf6 {[%emt 0:00:07]} 28. Bb6 {[%emt 0:00:22]} Nxf5 {[%emt 0:14:10]} 29. Rd8+ {[%emt 0:02:59]} Qxd8 {[%emt 0:00:02]} 30. Bxd8 {[%emt 0:00:03]} Kxd8 {[%emt 0:00:07]} 31. Rd1+ {[%emt 0:00:29]} Nd4 {[%emt 0:00:30]} 32. Qb3 {[%emt 0:01:05]} Kc8 {[%emt 0:01:38]} 33. Qxf7 {[%emt 0:00:15]} Rd8 {[%emt 0:00:06]} 34. Rb1 {[%emt 0:00:28]} Rd7 {[%emt 0:00:54]} 35. Qe8+ {[%emt 0:00:06]} Rd8 {[%emt 0:00:03]} 36. Qh5 {[%emt 0:00:25]} Re6 {[%emt 0:01:08]} 37. Qf7 {[%emt 0:00:47]} Rd7 {[%emt 0:00:55]} 38. Rc1+ {[%emt 0:00:30]} Kd8 {[%emt 0:00:24]} 39. Qf8+ {[%emt 0:00:11]} Re8 {[%emt 0:00:04]} 40. Qxf6+ {[%emt 0:00:06]} Ree7 {[%emt 0:00:07]} 41. Qf8+ {[%emt 0:01:23]} Re8 {[%emt 0:00:04]} 42. Rc8+ {[%emt 0:00:20]} Kxc8 {[%emt 0:00:24]} 43. Qxe8+ {[%emt 0:00:02]} Rd8 {[%emt 0:00:06]} 44. Qxe5 {[%emt 0:00:17]} Nc6 {[%emt 0:00:11]} 45. Qf5+ {[%emt 0:00:14]} Kb8 {[%emt 0:00:41]} 46. Qf4+ {[%emt 0:00:03]} Ka7 {[%emt 0:00:04]} 47. Qxh4 {[%emt 0:00:10]} Rd1+ {[%emt 0:00:04]} 48. Kh2 {[%emt 0:00:08]} Rd2 {[%emt 0:00:05]} 49. Qc4 {[%emt 0:00:18]} Kb6 {[%emt 0:00:07]} 50. Qb3+ {[%emt 0:00:17]} Kc7 {[%emt 0:00:07]} 51. h4 {[%emt 0:00:20]} Rd4 {[%emt 0:00:02]} 52. g3 {[%emt 0:00:17]} b5 {[%emt 0:00:31]} 53. h5 {[%emt 0:00:16]} Rd7 {[%emt 0:00:57]} 54. Qe3 {[%emt 0:00:36]} Re7 {[%emt 0:00:15]} 55. Qf4+ {[%emt 0:00:08]} Ne5 {[%emt 0:00:03]} 56. Kh3 {[%emt 0:00:28]} Kd6 {[%emt 0:00:07]} 57. Qd4+ {[%emt 0:00:34]} Ke6 {[%emt 0:00:10]} 58. Qb6+ {[%emt 0:00:42]} Kf5 {[%emt 0:00:05]} 59. g4+ {[%emt 0:00:21]} Ke4 {[%emt 0:00:11]} 60. Qxa6 {[%emt 0:02:46]} Rf7 {[%emt 0:00:04]} 61. Qxb5 {[%emt 0:01:08]} Kf4 {[%emt 0:00:11]} 62. Qb4+ {[%emt 0:00:53]} Kf3 {[%emt 0:00:17]} 63. g5 {[%emt 0:00:48]} Nd3 {[%emt 0:00:15]} 64. Qg4+ {[%emt 0:00:20]} Kf2 {[%emt 0:00:15]} 65. g6 {[%emt 0:01:12]} Rf3+ {[%emt 0:00:21]} 66. Qxf3+ {[%emt 0:00:29]} Kxf3 {[%emt 0:00:11]} 67. g7 {[%emt 0:00:01]} 1-0

[Event "Baku Open 2024"]
[Site "Baku"]
[Date "2024.07.02"]
[Round "4.37"]
[White "Ismayil, Malak"]
[Black "Moosavifar, Seyed Abolfazl"]
[Result "0-1"]
[ECO "C51"]
[WhiteElo "2165"]
[BlackElo "2283"]
[Annotator "NA RC"]
[PlyCount "100"]
[EventDate "2024.06.29"]
[EventType "swiss"]
[EventCountry "AZE"]
[SourceTitle "playchess.com"]
[Source "ChessBase"]
[SourceQuality "1"]
[TimeControl "5400+30"]

1. e4 {[%emt 0:00:05]} e5 {[%emt 0:01:10]} 2. Nf3 {[%emt 0:00:02]} Nc6 {[%emt 0:00:04]} 3. Bc4 {[%emt 0:00:03]} Bc5 {[%emt 0:00:05]} 4. b4 {[%emt 0:07:58]} Bxb4 {[%emt 0:00:13]} 5. c3 {[%emt 0:00:03]} Be7 {[%emt 0:00:06]} 6. d4 {[%emt 0:00:34]} Na5 {[%emt 0:00:02]} 7. Bd3 {[%emt 0:00:12]} d6 {[%emt 0:00:06]} 8. dxe5 {[%emt 0:02:01]} dxe5 {[%emt 0:03:55]} 9. Nxe5 {[%emt 0:00:30]} Nf6 {[%emt 0:00:05]} 10. Qa4+ {[%emt 0:04:45]} c6 {[%emt 0:00:01]} 11. Ba3 {[%emt 0:00:33]} b5 {[%emt 0:07:07]} 12. Qd4 {[%emt 0:16:35]} Qc7 {[%emt 0:02:22]} 13. Bxe7 {[%emt 0:01:23]} Qxe7 {[%emt 0:00:03]} 14. f4 {[%emt 0:03:04]} O-O {[%emt 0:05:10]} 15. O-O {[%emt 0:11:45]} c5 {[%emt 0:04:18]} 16. Qe3 {[%emt 0:00:14]} c4 {[%emt 0:16:45]} 17. Bc2 {[%emt 0:01:08]} Bb7 {[%emt 0:00:28]} 18. Nd2 {[%emt 0:02:34]} Nc6 {[%emt 0:06:54]} 19. Ndf3 {[%emt 0:00:44]} b4 {[%emt 0:02:42]} 20. Nxc6 {[%emt 0:09:25]} Bxc6 {[%emt 0:00:03]} 21. Ne5 {[%emt 0:00:05]} Bb7 {[%emt 0:05:11]} 22. cxb4 {[%emt 0:06:50]} Qxb4 {[%emt 0:00:14]} 23. Rab1 {[%emt 0:00:08]} Qe7 {[%emt 0:00:02]} 24. h3 {[%emt 0:06:38]} Rfc8 {[%emt 0:05:24]} 25. Rfd1 {[%emt 0:00:34]} Rc7 {[%emt 0:00:52]} 26. Rd4 {[%emt 0:03:21]} Rac8 {[%emt 0:01:01]} 27. Qc3 {[%emt 0:01:14]} Nh5 {[%emt 0:10:04]} 28. Rf1 {[%emt 0:04:25]} h6 {[%emt 0:04:10]} 29. Kh2 {[%emt 0:04:29]} Nf6 {[%emt 0:09:35]} 30. Re1 {[%emt 0:01:11]} Nh5 {[%emt 0:01:23]} 31. g3 {[%emt 0:01:42]} Nf6 {[%emt 0:00:45]} 32. Bb1 {[%emt 0:00:46]} Ne8 {[%emt 0:03:16]} 33. Red1 {[%emt 0:00:29]} Nf6 {[%emt 0:00:34]} 34. Re1 {[%emt 0:02:30]} Nd7 {[%emt 0:04:59]} 35. Nxd7 {[%emt 0:01:07]} Rxd7 {[%emt 0:00:01]} 36. Rxc4 {[%emt 0:06:53]} Rcd8 {[%emt 0:02:15]} 37. Bc2 {[%emt 0:03:00]} Rd2+ {[%emt 0:00:52]} 38. Kg1 {[%emt 0:00:00]} Qe6 {[%emt 0:03:35]} 39. f5 {[%emt 0:00:00]} Qb6+ {[%emt 0:00:12]} 40. Qe3 {[%emt 0:00:10]} Qb2 {[%emt 0:00:31]} 41. Qb3 {[%emt 0:00:39]} Qe5 {[%emt 0:00:23]} 42. Qc3 {[%emt 0:00:15]} Qd6 {[%emt 0:00:43]} 43. Qe3 {[%emt 0:00:26]} Ba6 {[%emt 0:00:45]} 44. Rc3 {[%emt 0:00:20]} Qb4 {[%emt 0:00:01]} 45. Qc5 {[%emt 0:00:36]} Qb2 {[%emt 0:00:31]} 46. Qc7 {[%emt 0:01:25]} Rc8 {[%emt 0:00:26]} 47. Qxc8+ {[%emt 0:00:31]} Bxc8 {[%emt 0:00:01]} 48. Rxc8+ {[%emt 0:00:07]} Kh7 {[%emt 0:00:01]} 49. Rb1 {[%emt 0:00:08]} Qd4+ {[%emt 0:00:09]} 50. Kh1 {[%emt 0:00:07]} Qf2 {[%emt 0:00:05]} 0-1

[Event "Baku Open 2024"]
[Site "Baku"]
[Date "2024.07.02"]
[Round "4.38"]
[White "Ahmad, Khagan"]
[Black "Ghoreishi Amiri, Seyed Kian"]
[Result "1-0"]
[ECO "A07"]
[WhiteElo "2401"]
[BlackElo "2126"]
[Annotator "TA"]
[PlyCount "143"]
[EventDate "2024.06.29"]
[EventType "swiss"]
[EventCountry "AZE"]
[SourceTitle "playchess.com"]
[Source "ChessBase"]
[SourceQuality "1"]
[TimeControl "5400+30"]

{[%evp 37,143,-3,7,6,14,15,22,-7,0,0,0,-17,-39,-37,-18,-6,0,0,35,39,66,71,93,85,76,83,85,86,156,96,158,176,195,195,202,202,191,192,247,241,267,285,264,287,268,281,370,330,347,352,351,347,318,334,433,439,446,437,29967,29968,29959,29966,29969,29970,29969,29971,29971,29972,29972,29973,29972,29974,29973,29975,29975,29976,29976,29977,29977,29978,29978,29979,29979,29980,29980,29981,29981,29982,29982,29983,29983,29984,29984,29985,29985,29986,29986,29986,29987,29988,29988,29989,29989,29990,29990,29991,29991,29991]} 1. Nf3 {[%emt 0:01:10]} d5 {[%emt 0:03:33]} 2. g3 {[%emt 0:00:43]} Nd7 {[%emt 0:00:03]} 3. Bg2 {[%emt 0:00:52]} e5 {[%emt 0:00:05]} 4. d3 {[%emt 0:00:05]} Ngf6 {[%emt 0:00:07]} 5. O-O {[%emt 0:00:07]} c6 {[%emt 0:00:02]} 6. e4 {[%emt 0:00:47]} dxe4 {[%emt 0:02:42]} 7. dxe4 {[%emt 0:00:05]} Be7 {[%emt 0:00:19]} 8. Qe2 {[%emt 0:01:00]} O-O {[%emt 0:01:17]} 9. b3 {[%emt 0:00:42]} Qc7 {[%emt 0:04:55]} 10. Bb2 {[%emt 0:00:13]} b5 {[%emt 0:05:29]} 11. a4 {[%emt 0:20:01]} a6 {[%emt 0:07:05]} 12. Rd1 {[%emt 0:04:38]} Bb7 {[%emt 0:02:32]} 13. Nbd2 {[%emt 0:02:15]} Rfe8 {[%emt 0:01:35]} 14. Nf1 {[%emt 0:02:47]} Bf8 {[%emt 0:05:01]} 15. Nh4 {[%emt 0:03:20]} g6 {[%emt 0:07:22]} 16. Ba3 {[%emt 0:10:15]} b4 {[%emt 0:07:43]} 17. Bb2 {[%emt 0:01:12]} a5 {[%emt 0:01:24]} 18. Nd2 {[%emt 0:06:55]} Ba6 {[%emt 0:01:28]} 19. Qf3 {[%emt 0:02:06]} Bg7 {[%emt 0:02:12]} 20. Bf1 {[%emt 0:01:09]} Bxf1 {[%emt 0:00:29]} 21. Kxf1 {[%emt 0:01:36]} Nc5 {[%emt 0:02:07]} 22. Qe3 {[%emt 0:00:34]} Ne6 {[%emt 0:02:42]} 23. Nhf3 {[%emt 0:13:08]} Nd4 {[%emt 0:01:26]} 24. Bxd4 {[%emt 0:00:19]} exd4 {[%emt 0:00:25]} 25. Qd3 {[%emt 0:00:11]} Nd7 {[%emt 0:06:08]} 26. Re1 {[%emt 0:01:21]} Nc5 {[%emt 0:02:10]} 27. Qc4 {[%emt 0:00:03]} Qb6 {[%emt 0:07:25]} 28. e5 {[%emt 0:07:00]} Rad8 {[%emt 0:03:42]} 29. Ne4 $1 {[%emt 0:00:08]} Nxe4 {[%emt 0:00:32]} 30. Rxe4 {[%emt 0:00:03]} Rd5 {[%emt 0:02:04]} 31. Rae1 {[%emt 0:04:02]} (31. Rxd4 $2 Rc5 32. Qe2 (32. Qd3 $2 Rc3 $19) 32... Rcxe5 $19 (32... Bxe5 33. Re1 $16)) 31... Rc5 {[%emt 0:02:38]} 32. Qe2 {[%emt 0:03:23]} Re6 {[%emt 0:01:17]} (32... Qa7 $142) 33. Qd3 {[%emt 0:06:32]} (33. Rxd4 Rcxe5 34. Nxe5 Qxd4 $17) (33. Rd1 $142 $1) 33... Rd5 {[%emt 0:02:27]} (33... Rc3 $142 34. Qxd4 Qxd4 35. Nxd4 Re8) 34. Rxd4 $16 {[%emt 0:00:54]} Rxd4 {[%emt 0:01:03]} 35. Qxd4 {[%emt 0:00:07]} (35. Nxd4 Rxe5 36. Rxe5 Bxe5 $11) 35... Qc7 {[%emt 0:00:10]} 36. Kg2 {[%emt 0:00:40]} h6 {[%emt 0:00:14]} 37. h4 {[%emt 0:00:12]} h5 {[%emt 0:00:59]} (37... Bh8 $142 38. h5 gxh5) 38. Re3 {[%emt 0:00:30]} Re7 {[%emt 0:01:37]} 39. Qd6 {[%emt 0:01:45]} Qxd6 {[%emt 0:00:45]} 40. exd6 {[%emt 0:00:02]} Rd7 {[%emt 0:00:36]} 41. Rd3 {[%emt 0:00:08]} Bc3 {[%emt 0:00:21]} 42. Nd2 {[%emt 0:02:53]} Bxd2 {[%emt 0:00:27]} 43. Rxd2 {[%emt 0:00:01]} f6 {[%emt 0:00:21]} 44. Kf3 {[%emt 0:00:06]} Kf7 {[%emt 0:00:03]} 45. g4 $1 {[%emt 0:00:06]} Ke6 {[%emt 0:03:10]} 46. gxh5 {[%emt 0:00:15]} gxh5 {[%emt 0:00:01]} 47. Ke4 {[%emt 0:00:24]} Rxd6 {[%emt 0:00:44]} (47... c5 $18 48. Rd5 Rxd6 49. Rxc5 Ke7) 48. Rxd6+ {[%emt 0:00:02]} Kxd6 {[%emt 0:00:01]} 49. Kf5 {[%emt 0:00:23]} Kd5 {[%emt 0:00:19]} 50. Kxf6 {[%emt 0:01:05]} Kd4 {[%emt 0:00:05]} 51. f4 {[%emt 0:00:06]} Kc3 {[%emt 0:00:02]} 52. f5 {[%emt 0:00:08]} Kxc2 {[%emt 0:00:04]} 53. Ke5 {[%emt 0:02:28]} Kxb3 {[%emt 0:00:04]} 54. f6 {[%emt 0:00:02]} Ka2 {[%emt 0:00:18]} 55. f7 {[%emt 0:00:01]} b3 {[%emt 0:00:01]} 56. f8=Q {[%emt 0:00:03]} (56. f8=R b2 57. Rb8 (57. Rf2 $2 Kb3 $19) 57... b1=Q (57... b1=R 58. Rxb1 Kxb1 59. Kd6 $11) 58. Rxb1 Kxb1 $11) 56... b2 {[%emt 0:00:09]} 57. Qf2 {[%emt 0:00:47]} Ka1 {[%emt 0:00:12]} 58. Qd4 {[%emt 0:00:28]} Ka2 {[%emt 0:00:44]} 59. Qc4+ {[%emt 0:00:06]} Ka1 {[%emt 0:00:04]} 60. Qc3 $1 {[%emt 0:00:04]} (60. Qxc6 b1=Q $11) 60... Ka2 {[%emt 0:00:03] [#]} 61. Qc2 $1 {[%emt 0:00:04]} (61. Qxc6 b1=Q $16) 61... Ka1 {[%emt 0:00:05] [#]} 62. Kd6 $1 {[%emt 0:00:11]} (62. Qxc6 b1=Q $11) 62... b1=Q {[%emt 0:00:13]} 63. Qxb1+ {[%emt 0:00:04]} (63. Qxc6 $2 Qb4+ 64. Qc5 Qf4+ (64... Qxa4 65. Qc1+ Ka2 66. Qd2+ Kb1 67. Qd3+ Qc2 68. Qb5+ Kc1 69. Qxa5 $11) (64... Qxh4 65. Qa3+ Kb1 66. Qd3+ Kc1 67. Qc3+ Kd1 68. Qd3+ Ke1 69. Qe3+ Kf1 70. Qf3+ Kg1 71. Qe3+ Qf2 72. Qg5+ Kf1 73. Qxh5 $11) 65. Ke6 (65. Qe5+ Qxe5+ 66. Kxe5 Kb2 $11) 65... Qxa4 $17 (65... Qxh4 66. Qa3+ Kb1 67. Qb3+ Kc1 68. Qc3+ Kd1 69. Qxa5 $11)) 63... Kxb1 {[%emt 0:00:20]} 64. Kxc6 {[%emt 0:00:02]} Kc2 {[%emt 0:00:09]} 65. Kb5 {[%emt 0:00:03]} Kd3 {[%emt 0:00:12]} 66. Kxa5 {[%emt 0:00:02]} Ke3 {[%emt 0:00:05]} 67. Kb4 {[%emt 0:00:14]} Kf3 {[%emt 0:00:04]} 68. a5 {[%emt 0:00:02]} Kg3 {[%emt 0:00:06]} 69. a6 {[%emt 0:00:09]} Kxh4 {[%emt 0:00:02]} 70. a7 {[%emt 0:00:00]} Kg3 {[%emt 0:00:01]} 71. a8=Q {[%emt 0:00:10]} ({And not} 71. a8=B h4 $11) 71... h4 {[%emt 0:00:06]} 72. Qh1 {[%emt 0:00:04]} 1-0

[Event "Baku Open 2024"]
[Site "Baku"]
[Date "2024.07.02"]
[Round "4.39"]
[White "Putrenko, Kirill"]
[Black "Musayev, Eldar"]
[Result "1-0"]
[ECO "E44"]
[WhiteElo "2349"]
[BlackElo "2129"]
[Annotator "TA"]
[PlyCount "57"]
[EventDate "2024.06.29"]
[EventType "swiss"]
[EventCountry "AZE"]
[SourceTitle "playchess.com"]
[Source "ChessBase"]
[SourceQuality "1"]
[TimeControl "5400+30"]

{[%evp 13,57,26,75,73,71,86,112,118,114,131,141,93,85,90,89,87,94,88,100,110,98,82,83,92,113,84,361,354,440,444,430,433,507,507,529,506,598,616,582,608,594,600,1318,1337,1516,1487]} 1. d4 {[%emt 0:00:02]} Nf6 {[%emt 0:00:18]} 2. c4 {[%emt 0:00:09]} e6 {[%emt 0:00:17]} 3. Nc3 {[%emt 0:00:11]} Bb4 {[%emt 0:01:41]} 4. e3 {[%emt 0:00:11]} b6 {[%emt 0:00:06]} 5. Nge2 {[%emt 0:01:06]} Bb7 {[%emt 0:00:35]} 6. a3 {[%emt 0:00:59]} Be7 {[%emt 0:01:06]} 7. d5 {[%emt 0:01:22]} e5 {[%emt 0:04:13]} (7... O-O $11 {might be stronger.}) 8. Ng3 $16 {[%emt 0:04:27]} a5 {[%emt 0:04:36]} 9. Nf5 {[%emt 0:03:52]} g6 {[%emt 0:00:54]} 10. Nxe7 {[%emt 0:01:01] White is better.} Qxe7 {[%emt 0:00:26]} 11. e4 {[%emt 0:01:42]} Na6 {[%emt 0:01:28]} 12. Be2 {[%emt 0:08:38]} (12. Bd3 $142) 12... Nc5 {[%emt 0:07:03]} 13. Qc2 {[%emt 0:00:33]} d6 {[%emt 0:06:07]} 14. Be3 {[%emt 0:02:52]} Bc8 {[%emt 0:05:57]} 15. b3 {[%emt 0:06:16][%cal Bb2b3,Bb3b4][%mdl 32]} Ng4 {[%emt 0:02:45]} 16. Bxg4 {[%emt 0:04:45]} Bxg4 {[%emt 0:00:44] [#]} 17. O-O $1 {[%emt 0:00:26]} Bd7 {[%emt 0:17:16]} 18. b4 {[%emt 0:00:45]} Nb7 {[%emt 0:00:40]} 19. Nb5 {[%emt 0:18:14] White is more active.} O-O $2 {[%emt 0:11:22][%mdl 8192] Loses the game.} (19... Rc8 $16 {was necessary.}) 20. Nxc7 $18 {[%emt 0:03:18]} Ba4 {[%emt 0:10:36]} 21. Qxa4 {[%emt 0:00:26] White is clearly winning.} Qxc7 {[%emt 0:00:01]} 22. Qb5 {[%emt 0:02:05]} Rfc8 {[%emt 0:03:01]} 23. Rac1 {[%emt 0:00:52]} ({Not} 23. Qxb6 Qxb6 24. Bxb6 axb4 $16) 23... axb4 {[%emt 0:03:48]} 24. axb4 {[%emt 0:00:46][%cal Ba3b4,Bb4c5,Bc5d6][%mdl 32]} Rab8 {[%emt 0:00:48]} 25. Bxb6 {[%emt 0:00:59]} Qe7 {[%emt 0:00:02]} 26. c5 {[%emt 0:00:34]} dxc5 {[%emt 0:01:15]} 27. bxc5 {[%emt 0:00:23]} Qg5 {[%emt 0:00:12]} 28. Ba7 {[%emt 0:03:46]} Nd6 {[%emt 0:00:35]} 29. cxd6 {[%emt 0:01:04] Weighted Error Value: White=0.05 (flawless) /Black=0.49.  Loses game:     	---       	Black=1      Mistake:       	White=1     	---        Inaccurate:     	---       	Black=1      OK:         	White=10    	Black=7      Best:        	White=2     	---        Strong:       	White=1     	---} (29. Bxb8 $2 {perishes.} Nxb5 30. f4 Qe7 31. Bxe5 Rxc5 $19) 1-0